lending/lending_fUSD_20251124
["ID","MTS","AMOUNT","RATE_DAILY","PERIOD"]
[394782627,1763942755287,451.75,0.00013699,2]
[394782664,1763943031953,-164.06876657,0.00018705,2]
[394782665,1763943031963,-1200.0,0.00018805,2]
[394782666,1763943031976,-300.0,0.00018805,2]
[394782667,1763943031986,-334.75,0.00018806,2]
[394782668,1763943031995,-49349.38872684,0.00018806,10]
[394782669,1763943032005,-241.28304479,0.00018806,2]
[394782670,1763943032014,-334.75,0.00019796,2]
[394782671,1763943032023,-451.75,0.00020187,2]
[394782672,1763943032033,-420.0,0.00020502,2]
[394782673,1763943032042,-727.0,0.00020602,2]
[394782674,1763943032051,-334.75,0.00020786,2]
[394782675,1763943032060,-334.75,0.00021776,2]
[394782676,1763943032069,-587.0,0.00022351,2]
[394782677,1763943032078,-334.75,0.00022765,2]
[394782678,1763943032087,-334.75,0.00023755,2]
[394782679,1763943032096,-279.88755604,0.00024717,2]
[394782680,1763943032105,-334.75,0.00024745,2]
[394782682,1763943032114,-334.75,0.00025735,2]
[394782684,1763943032123,-451.75,0.00026676,2]
[394782686,1763943032137,-1263.98,0.00026725,2]
[394782688,1763943032146,-4191.62,0.00026725,2]
[394782690,1763943032155,-334.75,0.00026725,2]
[394782691,1763943032164,-334.75,0.00027715,2]
[394782692,1763943032179,-334.75,0.00028704,2]
[394782693,1763943032189,-334.75,0.00029694,2]
[394782694,1763943032198,-2352.79,0.00030649,2]
[394782695,1763943032207,-334.75,0.00030684,2]
[394782696,1763943032218,-334.75,0.00031674,2]
[394782698,1763943032227,-334.75,0.00032664,2]
[394782700,1763943032236,-451.75,0.00033165,2]
[394782702,1763943032245,-333.84,0.00033422,120]
[394782703,1763943032254,-1000.33889664,0.00033653,2]
[394782704,1763943032263,-334.75,0.00033653,2]
[394782705,1763943032272,-697.65,0.0003379,2]
[394782706,1763943032281,-272.13,0.00034352,2]
[394782707,1763943032290,-334.75,0.00034643,2]
[394782708,1763943032299,-5000.0,0.00034937,2]
[394782709,1763943032308,-4338.69,0.00035541,2]
[394782710,1763943032317,-334.75,0.00035633,2]
[394782711,1763943032327,-272.13,0.00035722,2]
[394782712,1763943032336,-166.66,0.00035993,30]
[394782713,1763943032346,-334.75,0.00036623,2]
[394782714,1763943032357,-170.159,0.00036751,46]
[394782715,1763943032366,-1433.152,0.00036751,46]
[394782716,1763943032375,-166.66,0.00036751,30]
[394782717,1763943032385,-1247.0,0.000369,7]
[394782718,1763943032394,-1247.0,0.000369,7]
[394782719,1763943032404,-1247.0,0.000369,7]
[394782720,1763943032413,-1247.0,0.000369,7]
[394782721,1763943032423,-1247.0,0.000369,7]
[394782722,1763943032432,-1238.0,0.000369,7]
[394782723,1763943032441,-166.66,0.00037509,30]
[394782724,1763943032450,-166.57029206,0.00037598,2]
[394782725,1763943032460,-333.84,0.000376,120]
[394782726,1763943032470,-334.75,0.00037613,2]
[394782727,1763943032479,-2902.45184562,0.00037797,2]
[394782735,1763943037898,-411.57395041,0.00020087,2]
[394782736,1763943037907,-4.08501773,0.00037797,2]
[394782737,1763943037958,-17037.12313665,0.00037797,2]
[394782738,1763943037968,-6497.0,0.00037834,2]
[394782739,1763943037977,-561.0,0.00037834,2]
[394782740,1763943037986,-1192.0,0.00037834,2]
[394782741,1763943037995,-500.0,0.0003795,2]
[394782742,1763943038004,-150.0,0.00038026,2]
[394782743,1763943038014,-897.18,0.00038197,5]
[394782744,1763943038023,-166.66,0.00038267,30]
[394782745,1763943038032,-500.0,0.00038356,8]
[394782746,1763943038041,-318.16103646,0.00038356,8]
[394782747,1763943038051,-500.0,0.00038356,8]
[394782748,1763943038060,-399.43,0.00038356,8]
[394782749,1763943038070,-500.0,0.00038356,8]
[394782750,1763943038080,-500.0,0.00038356,8]
[394782751,1763943038089,-500.0,0.00038356,8]
[394782752,1763943038099,-500.0,0.00038356,8]
[394782753,1763943038108,-500.0,0.00038356,8]
[394782754,1763943038117,-500.0,0.00038356,8]
[394782755,1763943038126,-500.0,0.00038356,8]
[394782757,1763943038139,-177.02504259,0.00038356,2]
[394782759,1763943038148,-743.4979,0.00038558,2]
[394782761,1763943038158,-618.0116366,0.00038573,2]
[394782763,1763943038168,-1000.0,0.00038629,2]
[394782765,1763943038179,-500.0,0.0003863,8]
[394782766,1763943038189,-500.0,0.0003863,8]
[394782769,1763943038199,-500.0,0.0003863,8]
[394782770,1763943038209,-500.0,0.0003863,8]
[394782772,1763943038219,-500.0,0.0003863,8]
[394782775,1763943038229,-500.0,0.0003863,8]
[394782777,1763943038239,-500.0,0.0003863,8]
[394782779,1763943038248,-235.21426783,0.00038658,2]
[394782781,1763943038257,-27124.54865986,0.00038658,2]
[394782808,1763943039807,-637.23775054,0.00018706,2]
[394782812,1763943039889,-317.31855614,0.00018706,2]
[394782814,1763943039899,-77209.89673998,0.00038658,2]
[394782815,1763943039908,-1100.0,0.000387,2]
[394782816,1763943039918,-299.0,0.00038701,2]
[394782817,1763943039928,-1100.0,0.00038761,2]
[394782818,1763943039938,-1100.0,0.00038761,3]
[394782819,1763943039947,-1100.0,0.00038761,4]
[394782820,1763943039957,-299.0,0.00038807,2]
[394782821,1763943039966,-618.01163651,0.00038832,2]
[394782822,1763943039976,-299.0,0.00038851,2]
[394782823,1763943039985,-625.0,0.00038853,20]
[394782824,1763943039995,-1100.0,0.00038861,2]
[394782825,1763943040004,-1100.0,0.00038861,3]
[394782826,1763943040014,-1100.0,0.00038861,4]
[394782827,1763943040023,-1100.0,0.00038861,5]
[394782828,1763943040032,-500.0,0.00038903,8]
[394782829,1763943040041,-500.0,0.00038903,8]
[394782830,1763943040050,-500.0,0.00038903,8]
[394782831,1763943040060,-500.0,0.00038903,8]
[394782832,1763943040069,-500.0,0.00038903,8]
[394782833,1763943040079,-500.0,0.00038904,8]
[394782834,1763943040088,-500.0,0.00038904,8]
[394782835,1763943040098,-1100.0,0.00038961,2]
[394782836,1763943040107,-1100.0,0.00038961,3]
[394782837,1763943040116,-1100.0,0.00038961,5]
[394782838,1763943040126,-1100.0,0.00038961,4]
[394782839,1763943040138,-299.0,0.00038978,2]
[394782840,1763943040147,-166.66,0.00039024,30]
[394782841,1763943040156,-299.0,0.00039038,120]
[394782842,1763943040165,-449.12,0.0003906,3]
[394782843,1763943040175,-1100.0,0.00039061,2]
[394782844,1763943040184,-1100.0,0.00039061,3]
[394782845,1763943040195,-618.01163651,0.0003909,2]
[394782846,1763943040204,-1000.0,0.00039102,2]
[394782847,1763943040214,-200.0,0.00039115,2]
[394782848,1763943040223,-1500.0,0.00039156,120]
[394782849,1763943040232,-1100.0,0.00039161,2]
[394782850,1763943040241,-1100.0,0.00039161,3]
[394782851,1763943040250,-500.0,0.00039177,8]
[394782852,1763943040259,-500.0,0.00039177,8]
[394782853,1763943040268,-500.0,0.00039177,8]
[394782854,1763943040278,-500.0,0.00039177,8]
[394782855,1763943040287,-500.0,0.00039178,8]
[394782856,1763943040296,-500.0,0.00039178,8]
[394782857,1763943040305,-156.24154383,0.00039193,8]
[394782858,1763943040315,-299.0,0.00039235,120]
[394782859,1763943040324,-787.766,0.00039243,2]
[394782860,1763943040334,-625.0,0.00039254,20]
[394782861,1763943040343,-1100.0,0.00039261,2]
[394782862,1763943040352,-1100.0,0.00039261,3]
[394782863,1763943040362,-11918.77,0.00039343,2]
[394782864,1763943040372,-618.01163651,0.00039349,2]
[394782865,1763943040381,-500.0,0.00039356,7]
[394782866,1763943040390,-500.0,0.00039356,7]
[394782867,1763943040400,-1100.0,0.00039361,2]
[394782868,1763943040409,-1100.0,0.00039361,3]
[394782869,1763943040418,-1100.0,0.00039361,4]
[394782870,1763943040428,-2378.83,0.00039385,2]
[394782871,1763943040438,-5625.0,0.00039398,5]
[394782872,1763943040447,-299.0,0.00039398,2]
[394782873,1763943040456,-299.0,0.00039406,7]
[394782874,1763943040465,-154.83,0.00039451,8]
[394782875,1763943040475,-500.0,0.00039451,8]
[394782877,1763943040484,-500.0,0.00039451,8]
[394782879,1763943040493,-500.0,0.00039451,8]
[394782880,1763943040502,-500.0,0.00039452,8]
[394782882,1763943040511,-500.0,0.00039452,8]
[394782883,1763943040524,-4382.07293171,0.0003946,2]
[394782884,1763943040535,-1100.0,0.00039461,2]
[394782886,1763943040545,-1100.0,0.00039461,3]
[394782888,1763943040556,-1100.0,0.00039461,4]
[394782890,1763943040568,-1100.0,0.00039461,5]
[394782891,1763943040579,-500.0,0.00039462,8]
[394782892,1763943040591,-500.0,0.00039462,8]
[394782893,1763943040602,-500.0,0.00039462,8]
[394782894,1763943040612,-579.2280545,0.00039462,8]
[394782895,1763943040622,-500.0,0.00039462,8]
[394782896,1763943040632,-500.0,0.00039462,8]
[394782897,1763943040641,-500.0,0.00039462,8]
[394782898,1763943040651,-523.07,0.00039462,8]
[394782899,1763943040662,-500.0,0.00039462,8]
[394782900,1763943040673,-500.0,0.00039462,8]
[394782901,1763943040683,-500.0,0.00039462,8]
[394782903,1763943040695,-500.0,0.00039462,8]
[394782905,1763943040705,-500.0,0.00039462,8]
[394782907,1763943040715,-500.0,0.00039462,8]
[394782909,1763943040725,-500.0,0.00039462,8]
[394782910,1763943040738,-500.0,0.00039462,8]
[394782911,1763943040749,-500.0,0.00039462,8]
[394782912,1763943040760,-492.04823241,0.00039462,8]
[394782913,1763943040771,-500.0,0.00039472,8]
[394782914,1763943040784,-500.0,0.00039472,8]
[394782915,1763943040796,-500.0,0.00039472,8]
[394782916,1763943040807,-500.0,0.00039472,8]
[394782917,1763943040818,-500.0,0.00039472,8]
[394782918,1763943040828,-500.0,0.00039472,8]
[394782919,1763943040839,-509.87070682,0.00039472,8]
[394782920,1763943040853,-370.9787129,0.00039472,8]
[394782921,1763943040863,-420.08536476,0.00039472,8]
[394782922,1763943040873,-500.0,0.00039472,8]
[394782923,1763943040883,-500.0,0.00039472,8]
[394782924,1763943040892,-500.0,0.00039472,8]
[394782925,1763943040902,-500.0,0.00039472,8]
[394782926,1763943040913,-500.0,0.00039472,8]
[394782927,1763943040923,-500.0,0.00039472,8]
[394782928,1763943040934,-500.0,0.00039472,8]
[394782929,1763943040947,-500.0,0.00039472,8]
[394782930,1763943040957,-500.0,0.00039472,8]
[394782931,1763943040967,-500.0,0.00039472,8]
[394782932,1763943040978,-349.6885912,0.00039472,8]
[394782933,1763943040988,-500.0,0.00039472,8]
[394782934,1763943040999,-500.0,0.00039472,8]
[394782935,1763943041009,-500.0,0.00039472,8]
[394782936,1763943041019,-440.98923791,0.00039472,8]
[394782937,1763943041029,-500.0,0.00039472,8]
[394782938,1763943041040,-500.0,0.00039472,8]
[394782939,1763943041051,-341.2946368,0.00039472,8]
[394782940,1763943041062,-500.0,0.00039472,8]
[394782941,1763943041074,-500.0,0.00039472,8]
[394782942,1763943041085,-500.0,0.00039472,8]
[394782943,1763943041095,-500.0,0.00039472,8]
[394782944,1763943041106,-500.0,0.00039472,8]
[394782945,1763943041117,-500.0,0.00039472,8]
[394782946,1763943041128,-500.0,0.00039472,8]
[394782947,1763943041142,-500.0,0.00039472,8]
[394782948,1763943041153,-500.0,0.00039472,8]
[394782949,1763943041163,-500.0,0.00039472,8]
[394782950,1763943041175,-500.0,0.00039472,8]
[394782951,1763943041185,-500.0,0.00039472,8]
[394782952,1763943041199,-500.0,0.00039472,8]
[394782953,1763943041211,-296.14362121,0.00039472,8]
[394782954,1763943041222,-500.0,0.00039472,8]
[394782955,1763943041233,-500.0,0.00039472,8]
[394782956,1763943041243,-500.0,0.00039472,8]
[394782957,1763943041254,-265.714565,0.00039472,8]
[394782958,1763943041265,-500.0,0.00039472,8]
[394782959,1763943041275,-593.26,0.00039472,8]
[394782960,1763943041285,-500.0,0.00039472,8]
[394782961,1763943041297,-500.0,0.00039472,8]
[394782962,1763943041308,-500.0,0.00039472,8]
[394782963,1763943041318,-500.0,0.00039472,8]
[394782964,1763943041327,-500.0,0.00039472,8]
[394782965,1763943041338,-500.0,0.00039472,8]
[394782966,1763943041349,-261.05732626,0.00039472,8]
[394782967,1763943041359,-500.0,0.00039472,8]
[394782968,1763943041371,-500.0,0.00039472,8]
[394782969,1763943041381,-500.0,0.00039472,2]
[394782970,1763943041392,-500.0,0.00039472,8]
[394782971,1763943041403,-500.0,0.00039472,8]
[394782972,1763943041416,-500.0,0.00039472,2]
[394782973,1763943041427,-523.44137186,0.00039472,8]
[394782974,1763943041438,-500.0,0.00039472,8]
[394782975,1763943041449,-588.0,0.00039472,8]
[394782976,1763943041459,-500.0,0.00039472,8]
[394782977,1763943041469,-500.0,0.00039472,2]
[394782978,1763943041480,-200.25,0.00039472,2]
[394782979,1763943041490,-500.0,0.00039472,8]
[394782980,1763943041500,-500.0,0.00039472,8]
[394782981,1763943041510,-808.15,0.00039472,8]
[394782982,1763943041521,-500.0,0.00039472,8]
[394782983,1763943041530,-500.0,0.00039472,8]
[394782984,1763943041539,-500.0,0.00039472,8]
[394782985,1763943041549,-1073.5,0.00039472,8]
[394782986,1763943041558,-500.0,0.00039472,8]
[394782987,1763943041567,-500.0,0.00039472,8]
[394782988,1763943041577,-500.0,0.00039472,2]
[394782989,1763943041587,-500.0,0.00039472,8]
[394782990,1763943041596,-500.0,0.00039472,8]
[394782991,1763943041606,-500.0,0.00039472,8]
[394782992,1763943041616,-500.0,0.00039472,8]
[394782993,1763943041626,-500.0,0.00039472,8]
[394782994,1763943041637,-500.0,0.00039472,8]
[394782995,1763943041648,-500.0,0.00039472,8]
[394782996,1763943041659,-500.0,0.00039472,8]
[394782997,1763943041669,-500.0,0.00039472,8]
[394782998,1763943041679,-500.0,0.00039472,8]
[394782999,1763943041689,-500.0,0.00039472,8]
[394783000,1763943041698,-500.0,0.00039472,8]
[394783001,1763943041708,-500.0,0.00039472,8]
[394783002,1763943041718,-417.58102774,0.00039473,2]
[394783003,1763943041728,-500.0,0.00039473,5]
[394783004,1763943041737,-500.48997271,0.00039473,5]
[394783005,1763943041747,-550700.30503127,0.00039473,2]
[394783006,1763943041778,-900.0,0.00039356,7]
[394783007,1763943041788,-381.10009724,0.00039473,2]
[394783008,1763943041801,-4773.4908966,0.00039473,2]
[394783020,1763943045993,-500.0,0.00037543,2]
[394783021,1763943046004,-500.0,0.00037543,2]
[394783022,1763943046015,-500.0,0.00037543,2]
[394783023,1763943046025,-500.0,0.00037543,2]
[394783024,1763943046035,-204.10909086,0.00037543,2]
[394783025,1763943046047,-295.89090914,0.00037543,2]
[394783026,1763943046058,-371.75044927,0.00037543,2]
[394783027,1763943046161,-128.24955073,0.00037543,2]
[394783028,1763943046173,-500.0,0.00037543,2]
[394783029,1763943046183,-500.0,0.00037543,2]
[394783030,1763943046193,-100.49796927,0.00037543,2]
[394783031,1763943046205,-290.25404442,0.00037543,2]
[394783032,1763943046219,-109.24798631,0.00037543,2]
[394783033,1763943046230,-500.0,0.00037543,2]
[394783034,1763943046240,-500.0,0.00037543,2]
[394783035,1763943046249,-400.09467526,0.00037543,2]
[394783036,1763943046261,-99.90532474,0.00037543,2]
[394783037,1763943046271,-500.0,0.00037543,2]
[394783038,1763943046281,-500.0,0.00037543,2]
[394783039,1763943046291,-500.0,0.00037543,2]
[394783040,1763943046300,-500.0,0.00037543,2]
[394783041,1763943046310,-500.0,0.00037543,2]
[394783042,1763943046320,-500.0,0.00037543,2]
[394783043,1763943046329,-500.0,0.00037543,2]
[394783044,1763943046339,-500.0,0.00037543,2]
[394783045,1763943046348,-500.0,0.00037543,2]
[394783046,1763943046358,-500.0,0.00037543,2]
[394783047,1763943046368,-500.0,0.00037543,2]
[394783048,1763943046378,-500.0,0.00037543,2]
[394783049,1763943046388,-500.0,0.00037543,2]
[394783050,1763943046398,-500.0,0.00037543,2]
[394783051,1763943046407,-500.0,0.00037543,2]
[394783052,1763943046417,-500.0,0.00037543,2]
[394783053,1763943046426,-500.0,0.00037543,2]
[394783054,1763943046436,-103.97456093,0.00037543,2]
[394783055,1763943046449,-396.02543907,0.00037543,2]
[394783056,1763943046459,-186.03285643,0.00037834,2]
[394783057,1763943046471,-721.96714357,0.00037834,2]
[394783058,1763943046481,-182.96423152,0.00038903,8]
[394783059,1763943046491,-3612.81862516,0.00039473,2]
[394783064,1763944024949,-654.30741162,0.000162,5]
[394783078,1763944027712,-158.7,0.000162,5]
[394783100,1763944231935,-4187.00175241,0.000162,5]
[394783101,1763944231947,-287.88088425,0.000169,2]
[394783102,1763944231960,-154.52035668,0.00016973,2]
[394783103,1763944231975,-292.18778882,0.00016973,2]
[394783104,1763944231987,-500.0,0.00016973,2]
[394783105,1763944231999,-500.0,0.00016973,2]
[394783106,1763944232010,-500.0,0.00016973,2]
[394783107,1763944232020,-275.15105889,0.00016973,2]
[394783108,1763944232031,-500.87773051,0.00016973,2]
[394783109,1763944232042,-300.0,0.00016999,2]
[394783110,1763944232053,-1200.0,0.00016999,2]
[394783111,1763944232066,-300.0,0.00016999,2]
[394783112,1763944232079,-550.0,0.00016999,2]
[394783113,1763944232090,-33659.62242847,0.00017,2]
[394783114,1763944232104,-593.68559843,0.00017,2]
[394783115,1763944232160,-4869.15545047,0.00017,2]
[394783116,1763944232172,-23271.55690299,0.00017,2]
[394783117,1763944232213,-31446.04897899,0.00017,2]
[394783122,1763944237986,-93110.61576795,0.00017,2]
[394783123,1763944237997,-1000.0,0.00017521,2]
[394783124,1763944238008,-1000.0,0.00017521,2]
[394783125,1763944238019,-1500.0,0.00018068,2]
[394783126,1763944238029,-280.46189862,0.00018068,2]
[394783127,1763944238039,-574.0,0.00018104,2]
[394783128,1763944238050,-420.0,0.00018567,2]
[394783129,1763944238060,-420.0,0.00018567,2]
[394783130,1763944238070,-1680.0,0.00018659,2]
[394783131,1763944238081,-340.0,0.000199,3]
[394783132,1763944238092,-2844.11982945,0.0002,2]
[394783133,1763944238102,-413.8927255,0.0002,2]
[394783134,1763944238113,-12837.41450536,0.0002,2]
[394783135,1763944238123,-1046.72385357,0.0002,2]
[394783136,1763944238134,-300.0,0.0002011,2]
[394783137,1763944238144,-587.0,0.00020279,2]
[394783138,1763944238155,-587.0,0.00020279,2]
[394783139,1763944238166,-2162.0,0.00020481,2]
[394783140,1763944238176,-500.0,0.00021,5]
[394783141,1763944238186,-41519.71940701,0.00021,2]
[394783142,1763944238197,-1184.69848975,0.00021,2]
[394783143,1763944238208,-195.55122067,0.00021,2]
[394783144,1763944238218,-250.0,0.00021406,2]
[394783145,1763944238229,-220.54231541,0.000215,2]
[394783146,1763944238240,-1085.1018,0.00021973,10]
[394783147,1763944238251,-198.88604099,0.00021999,2]
[394783148,1763944238262,-500.0,0.00021999,2]
[394783149,1763944238272,-500.0,0.00021999,2]
[394783150,1763944238283,-500.0,0.00021999,2]
[394783151,1763944238294,-500.0,0.00021999,2]
[394783152,1763944238305,-500.0,0.00021999,2]
[394783153,1763944238315,-500.0,0.00021999,2]
[394783154,1763944238326,-500.0,0.00021999,2]
[394783155,1763944238336,-500.0,0.00021999,2]
[394783156,1763944238346,-206.89509248,0.00021999,2]
[394783157,1763944238357,-500.0,0.00021999,2]
[394783158,1763944238367,-500.0,0.00021999,2]
[394783159,1763944238378,-500.0,0.00021999,2]
[394783160,1763944238388,-500.0,0.00021999,2]
[394783162,1763944238399,-500.0,0.00021999,2]
[394783164,1763944238409,-500.0,0.00021999,2]
[394783166,1763944238421,-500.0,0.00021999,2]
[394783167,1763944238431,-500.0,0.00021999,2]
[394783168,1763944238442,-500.0,0.00021999,2]
[394783170,1763944238453,-500.0,0.00021999,2]
[394783172,1763944238464,-500.0,0.00021999,2]
[394783174,1763944238480,-20318.35743177,0.00022,4]
[394783175,1763944238490,-4116.66663381,0.00022,2]
[394783176,1763944238501,-160.97,0.00022,2]
[394783177,1763944238512,-254.3431396,0.00022,2]
[394783178,1763944238522,-490.87389864,0.000221,2]
[394783179,1763944238532,-238.55204116,0.0002211,2]
[394783180,1763944238543,-386.0,0.00022149,2]
[394783181,1763944238552,-403.0,0.00022149,2]
[394783182,1763944238563,-5367.6808124,0.000225,2]
[394783183,1763944238573,-144186.42958173,0.00023314,2]
[394783184,1763944238583,-153.71,0.00029218,2]
[394783185,1763944238593,-514.17,0.00029556,2]
[394783186,1763944238604,-177.06,0.00035261,2]
[394783187,1763944238613,-1247.0,0.00035526,7]
[394783188,1763944238624,-1488.60456904,0.00035803,2]
[394783189,1763944238634,-1000.0,0.0003675,3]
[394783190,1763944238644,-1468.19073083,0.0003695,2]
[394783191,1763944238655,-250.0,0.00037097,2]
[394783192,1763944238665,-159.84,0.00037347,2]
[394783193,1763944238675,-965.87,0.00037386,2]
[394783194,1763944238685,-500.0,0.00037422,5]
[394783195,1763944238696,-155.87,0.00037509,30]
[394783196,1763944238706,-500.0,0.00037554,2]
[394783197,1763944238717,-1852.42,0.00037583,2]
[394783198,1763944238728,-500.0,0.00037685,2]
[394783199,1763944238739,-999.0,0.00037717,3]
[394783200,1763944238749,-9651.95,0.00037992,2]
[394783201,1763944238771,-1146.522,0.00038067,50]
[394783202,1763944238783,-170.16,0.00038067,50]
[394783203,1763944238795,-500.0,0.00038073,5]
[394783204,1763944238807,-505.6870483,0.00038073,5]
[394783205,1763944238819,-500.0,0.00038073,5]
[394783206,1763944238831,-500.0,0.00038073,5]
[394783207,1763944238844,-172.82138905,0.00038073,5]
[394783208,1763944238856,-500.0,0.00038073,5]
[394783209,1763944238868,-500.2729996,0.00038073,5]
[394783210,1763944238879,-500.0,0.00038073,5]
[394783211,1763944238890,-500.0,0.00038073,5]
[394783212,1763944238902,-500.0,0.00038073,5]
[394783213,1763944238913,-164.12207296,0.00038073,5]
[394783214,1763944238925,-500.0,0.00038073,5]
[394783215,1763944238935,-500.0,0.00038073,5]
[394783216,1763944238946,-500.0,0.00038073,5]
[394783217,1763944238957,-500.0,0.00038073,5]
[394783218,1763944238968,-500.0,0.00038073,5]
[394783219,1763944238978,-164.86773669,0.00038073,5]
[394783220,1763944238989,-500.0,0.00038073,5]
[394783221,1763944239000,-486.89386542,0.00038073,5]
[394783222,1763944239011,-500.0,0.00038073,5]
[394783223,1763944239022,-500.48997271,0.00038073,5]
[394783224,1763944239033,-417.58102774,0.00038073,2]
[394783225,1763944239044,-500.0,0.00038073,5]
[394783226,1763944239054,-500.0,0.00038073,5]
[394783227,1763944239065,-500.77100973,0.00038073,5]
[394783228,1763944239076,-500.0,0.00038073,5]
[394783229,1763944239088,-500.0,0.00038073,5]
[394783230,1763944239099,-500.0,0.00038073,5]
[394783231,1763944239114,-372.51181017,0.00038073,5]
[394783232,1763944239127,-48179.54,0.00038082,2]
[394783233,1763944239139,-479.01,0.00038137,2]
[394783234,1763944239151,-704.53,0.00038147,2]
[394783235,1763944239164,-636.82,0.0003815,2]
[394783236,1763944239176,-500.0,0.00038256,2]
[394783237,1763944239188,-7323.47241828,0.00038296,2]
[394783238,1763944239200,-500.0,0.00038356,8]
[394783239,1763944239212,-500.0,0.00038356,8]
[394783240,1763944239224,-500.0,0.00038356,8]
[394783241,1763944239235,-218.44096481,0.00038356,2]
[394783242,1763944239247,-1000.0,0.00038359,2]
[394783243,1763944239563,-500.0,0.00038373,5]
[394783244,1763944239589,-641.77897024,0.00038373,2]
[394783245,1763944239599,-25033.403888,0.00038386,4]
[394783246,1763944239609,-29262.20831945,0.00038396,2]
[394783247,1763944239619,-21230.97,0.00038396,2]
[394783248,1763944239628,-201.02,0.00038436,2]
[394783249,1763944239637,-4172.23398133,0.00038448,4]
[394783250,1763944239646,-417.4,0.00038548,2]
[394783251,1763944239654,-169.71,0.00038548,2]
[394783252,1763944239663,-177.6,0.00038548,2]
[394783253,1763944239672,-177.6,0.00038548,2]
[394783254,1763944239681,-169.71,0.00038548,2]
[394783255,1763944239689,-417.4,0.00038548,2]
[394783256,1763944239698,-177.6,0.00038548,2]
[394783257,1763944239707,-169.71,0.00038548,2]
[394783258,1763944239716,-417.4,0.00038548,2]
[394783259,1763944239724,-177.6,0.00038548,2]
[394783260,1763944239733,-169.5,0.00038548,2]
[394783261,1763944239742,-177.6,0.00038548,2]
[394783262,1763944239751,-4172.23398133,0.00038548,4]
[394783263,1763944239760,-10093.5972,0.00038558,2]
[394783264,1763944239769,-684.0733,0.00038558,2]
[394783265,1763944239778,-7323.47241825,0.00038585,2]
[394783266,1763944239790,-1000.0,0.00038621,5]
[394783267,1763944239799,-1000.0,0.00038621,5]
[394783268,1763944239808,-1000.0,0.00038621,5]
[394783269,1763944239816,-500.0,0.00038621,5]
[394783270,1763944239825,-137.04894513,0.00038621,5]
[394783271,1763944239991,-573.66408346,0.00038621,5]
[394783272,1763944240003,-289.28697141,0.00038621,5]
[394783274,1763944240013,-210.71302859,0.00038621,5]
[394783275,1763944240025,-291.30933135,0.00038621,5]
[394783276,1763944240036,-1000.0,0.00038621,5]
[394783278,1763944240046,-500.0,0.00038621,5]
[394783280,1763944240055,-449.97837369,0.00038621,5]
[394783282,1763944240064,-500.0,0.0003863,8]
[394783284,1763944240073,-500.0,0.0003863,8]
[394783286,1763944240083,-200.0,0.00038676,2]
[394783288,1763944240092,-3909.28407413,0.00038719,4]
[394783290,1763944240104,-262.9499072,0.00038719,4]
[394783292,1763944240113,-2302.63387734,0.0003875,4]
[394783295,1763944240137,-1869.60010399,0.0003875,4]
[394783298,1763944240147,-500.0,0.0003876,8]
[394783300,1763944240156,-500.0,0.0003876,8]
[394783301,1763944240166,-500.0,0.0003876,8]
[394783303,1763944240176,-500.0,0.0003876,8]
[394783305,1763944240185,-1318.01,0.0003876,30]